fUSD/lending_fUSD_20260606
["ID","MTS","AMOUNT","RATE_DAILY","PERIOD"]
[424286408,1780752646000,-2080.17592889,0.00018154,2]
[424286400,1780752646000,-279.9045709,0.00018154,2]
[424286402,1780752646000,-578.20924308,0.00018154,2]
[424286404,1780752646000,-174.61919141,0.00018154,2]
[424286403,1780752646000,-693.39197629,0.00018154,2]
[424286401,1780752646000,-1000.0,0.00018154,2]
[424286406,1780752646000,-151.0,0.00018154,2]
[424286399,1780752646000,-209.40437684,0.00018154,2]
[424286405,1780752646000,-1000.0,0.00018154,2]
[424286407,1780752646000,-209.40437684,0.00018154,2]
[424286393,1780752646000,-693.39197629,0.00018154,2]
[424286423,1780752646000,-500.0,0.00018154,2]
[424286421,1780752646000,-200.0,0.00018154,2]
[424286416,1780752646000,-151.0,0.00018154,2]
[424286415,1780752646000,-1000.0,0.00018154,2]
[424286410,1780752646000,-151.0,0.00018154,2]
[424286414,1780752646000,-151.0,0.00018154,2]
[424286413,1780752646000,-151.0,0.00018154,2]
[424286417,1780752646000,-1000.0,0.00018154,2]
[424286419,1780752646000,-151.0,0.00018154,2]
[424286420,1780752646000,-1000.0,0.00018154,2]
[424286409,1780752646000,-1000.0,0.00018154,2]
[424286411,1780752646000,-1000.0,0.00018154,2]
[424286418,1780752646000,-152.0,0.00018154,2]
[424286412,1780752646000,-151.0,0.00018154,2]
[424286495,1780752647000,-801.0,0.0001829,2]
[424286493,1780752647000,-785.0,0.0001829,2]
[424286488,1780752647000,-4110.0,0.0001829,2]
[424286491,1780752647000,-4082.0,0.0001829,2]
[424286489,1780752647000,-1116.0,0.0001829,2]
[424286497,1780752647000,-408.0,0.0001829,2]
[424286492,1780752647000,-698.0,0.0001829,2]
[424286486,1780752647000,-151.0,0.00018264,2]
[424286494,1780752647000,-4263.0,0.0001829,2]
[424286498,1780752647000,-936.0,0.0001829,2]
[424286487,1780752647000,-6710.87012543,0.00018264,2]
[424286496,1780752647000,-1747.0,0.0001829,2]
[424286490,1780752647000,-651.0,0.0001829,2]
[424286501,1780752647000,-2972.0,0.0001829,2]
[424286509,1780752647000,-1512.24829288,0.000184,2]
[424286511,1780752647000,-2059.31243796,0.000184,2]
[424286510,1780752647000,-1201.13236894,0.000184,2]
[424286502,1780752647000,-10086.04853048,0.000183,2]
[424286500,1780752647000,-675.0,0.0001829,2]
[424286503,1780752647000,-773.24136889,0.00018319,2]
[424286505,1780752647000,-6959.17232007,0.00018319,2]
[424286506,1780752647000,-801.85129954,0.00018374,2]
[424286504,1780752647000,-151.0,0.00018319,2]
[424286508,1780752647000,-7216.66169591,0.00018374,2]
[424286507,1780752647000,-151.0,0.00018374,2]
[424286524,1780752647000,-1201.13236894,0.000185,2]
[424286523,1780752647000,-1512.24829288,0.000185,2]
[424286513,1780752647000,-231.01520189,0.000184,2]
[424286499,1780752647000,-1092.0,0.0001829,2]
[424286485,1780752647000,-745.65223615,0.00018264,2]
[424286454,1780752647000,-152.0,0.00018154,2]
[424286477,1780752647000,-300.0,0.00018189,2]
[424286514,1780752647000,-231.01520189,0.000184,2]
[424286455,1780752647000,-151.0,0.00018154,2]
[424286456,1780752647000,-500.0,0.00018154,2]
[424286457,1780752647000,-151.0,0.00018154,2]
[424286458,1780752647000,-152.0,0.00018154,2]
[424286460,1780752647000,-151.0,0.00018154,2]
[424286470,1780752647000,-151.0,0.00018154,2]
[424286461,1780752647000,-500.0,0.00018154,2]
[424286471,1780752647000,-151.0,0.00018154,2]
[424286463,1780752647000,-151.0,0.00018154,2]
[424286459,1780752647000,-151.0,0.00018154,2]
[424286462,1780752647000,-152.0,0.00018154,2]
[424286466,1780752647000,-200.0,0.00018154,2]
[424286465,1780752647000,-500.0,0.00018154,2]
[424286464,1780752647000,-151.0,0.00018154,2]
[424286469,1780752647000,-500.0,0.00018154,2]
[424286467,1780752647000,-152.0,0.00018154,2]
[424286468,1780752647000,-151.0,0.00018154,2]
[424286472,1780752647000,-500.0,0.00018154,2]
[424286474,1780752647000,-500.0,0.00018154,2]
[424286479,1780752647000,-1512.24829288,0.000182,2]
[424286475,1780752647000,-500.0,0.00018154,2]
[424286476,1780752647000,-300.0,0.00018189,2]
[424286482,1780752647000,-719.04747942,0.00018209,2]
[424286473,1780752647000,-151.0,0.00018154,2]
[424286480,1780752647000,-1201.13236894,0.000182,2]
[424286478,1780752647000,-300.0,0.00018189,2]
[424286483,1780752647000,-151.0,0.00018209,2]
[424286481,1780752647000,-2059.31243796,0.000182,2]
[424286484,1780752647000,-6471.42731478,0.00018209,2]
[424286512,1780752647000,-231.0152019,0.000184,2]
[424286516,1780752647000,-417.54734895,0.00018419,2]
[424286519,1780752647000,-7483.67817866,0.00018429,2]
[424286561,1780752647000,-5451.74277262,0.00018704,2]
[424286553,1780752647000,-200.0,0.00018702,2]
[424286558,1780752647000,-9905.59807649,0.00018702,2]
[424286560,1780752647000,-151.0,0.00018704,2]
[424286555,1780752647000,-1481.2378076,0.00018702,2]
[424286562,1780752647000,-1512.24829288,0.000189,2]
[424286556,1780752647000,-217.15233878,0.00018702,2]
[424286552,1780752647000,-151.0,0.00018702,2]
[424286557,1780752647000,-200.0,0.00018702,2]
[424286563,1780752647000,-1201.13236894,0.000189,2]
[424286559,1780752647000,-997.16350561,0.00018704,2]
[424286564,1780752647000,-2059.31243796,0.000189,2]
[424286565,1780752647000,-185.04,0.00018968,2]
[424286575,1780752647000,-2059.31243796,0.000191,2]
[424286569,1780752647000,-400399.81791939,0.00019,2]
[424286566,1780752647000,-300.0,0.00018999,2]
[424286567,1780752647000,-300.0,0.00018999,2]
[424286568,1780752647000,-6326.00199692,0.00019,2]
[424286570,1780752647000,-1753.50455484,0.00019,2]
[424286571,1780752647000,-3541.00338417,0.00019,2]
[424286573,1780752647000,-1512.24829288,0.000191,2]
[424286574,1780752647000,-1201.13236894,0.000191,2]
[424286572,1780752647000,-180.0,0.00019005,2]
[424286520,1780752647000,-862.28603014,0.00018484,2]
[424286578,1780752647000,-839.06718577,0.00019178,2]
[424286576,1780752647000,-300.0,0.00019177,2]
[424286579,1780752647000,-192.967881,0.00019178,2]
[424286581,1780752647000,-192.967881,0.00019178,2]
[424286577,1780752647000,-300.0,0.00019177,2]
[424286554,1780752647000,-500.0,0.00018702,2]
[424286551,1780752647000,-2157.14243826,0.00018702,2]
[424286580,1780752647000,-192.967881,0.00019178,2]
[424286543,1780752647000,-2059.31243796,0.000187,2]
[424286544,1780752647000,-151.0,0.00018702,2]
[424286517,1780752647000,-831.51979762,0.00018429,2]
[424286518,1780752647000,-151.0,0.00018429,2]
[424286522,1780752647000,-7760.57427127,0.00018484,2]
[424286521,1780752647000,-151.0,0.00018484,2]
[424286525,1780752647000,-10086.04853048,0.000185,2]
[424286527,1780752647000,-894.19061325,0.00018539,2]
[424286528,1780752647000,-151.0,0.00018539,2]
[424286529,1780752647000,-8047.71551931,0.00018539,2]
[424286526,1780752647000,-2059.31243796,0.000185,2]
[424286535,1780752647000,-151.0,0.00018649,2]
[424286534,1780752647000,-961.58486558,0.00018649,2]
[424286536,1780752647000,-8654.26379028,0.00018649,2]
[424286530,1780752647000,-718.0,0.0001855,5]
[424286515,1780752647000,-4204.8,0.0001841,2]
[424286533,1780752647000,-8345.48099352,0.00018594,2]
[424286537,1780752647000,-5800.0,0.00018686,2]
[424286541,1780752647000,-1201.13236894,0.000187,2]
[424286540,1780752647000,-1512.24829288,0.000187,2]
[424286538,1780752647000,-5800.0,0.00018695,2]
[424286545,1780752647000,-200.0,0.00018702,2]
[424286548,1780752647000,-719.04747942,0.00018702,2]
[424286542,1780752647000,-10086.04853048,0.000187,2]
[424286550,1780752647000,-217.15233878,0.00018702,2]
[424286547,1780752647000,-217.15233878,0.00018702,2]
[424286546,1780752647000,-290.26104002,0.00018702,2]
[424286539,1780752647000,-5800.0,0.00018695,2]
[424286532,1780752647000,-151.0,0.00018594,2]
[424286549,1780752647000,-181.08010149,0.00018702,2]
[424286531,1780752647000,-927.27566594,0.00018594,2]
[424286623,1780752648000,-151.0,0.00019178,2]
[424286621,1780752648000,-151.0,0.00019178,2]
[424286620,1780752648000,-151.0,0.00019178,2]
[424286618,1780752648000,-342.548367,0.00019178,2]
[424286615,1780752648000,-342.548366,0.00019178,2]
[424286616,1780752648000,-342.548366,0.00019178,2]
[424286614,1780752648000,-342.548366,0.00019178,2]
[424286613,1780752648000,-342.548366,0.00019178,2]
[424286622,1780752648000,-151.0,0.00019178,2]
[424286610,1780752648000,-342.548366,0.00019178,2]
[424286617,1780752648000,-342.548366,0.00019178,2]
[424286612,1780752648000,-342.548366,0.00019178,2]
[424286629,1780752648000,-151.0,0.00019178,2]
[424286619,1780752648000,-20453.62,0.00019178,2]
[424286625,1780752648000,-151.0,0.00019178,2]
[424286626,1780752648000,-151.0,0.00019178,2]
[424286627,1780752648000,-151.0,0.00019178,2]
[424286633,1780752648000,-151.0,0.00019178,2]
[424286631,1780752648000,-151.0,0.00019178,2]
[424286639,1780752648000,-745.65223615,0.0001925,2]
[424286637,1780752648000,-301.0006985,0.0001925,2]
[424286628,1780752648000,-151.0,0.00019178,2]
[424286630,1780752648000,-151.0,0.00019178,2]
[424286607,1780752648000,-342.548366,0.00019178,2]
[424286624,1780752648000,-151.0,0.00019178,2]
[424286609,1780752648000,-342.548366,0.00019178,2]
[424286596,1780752648000,-192.967881,0.00019178,2]
[424286606,1780752648000,-342.548366,0.00019178,2]
[424286632,1780752648000,-151.0,0.00019178,2]
[424286588,1780752648000,-192.967881,0.00019178,2]
[424286584,1780752648000,-192.967881,0.00019178,2]
[424286587,1780752648000,-192.967881,0.00019178,2]
[424286582,1780752648000,-192.967881,0.00019178,2]
[424286585,1780752648000,-192.967881,0.00019178,2]
[424286586,1780752648000,-192.967881,0.00019178,2]
[424286590,1780752648000,-192.967881,0.00019178,2]
[424286600,1780752648000,-342.548366,0.00019178,2]
[424286599,1780752648000,-342.548366,0.00019178,2]
[424286601,1780752648000,-342.548366,0.00019178,2]
[424286608,1780752648000,-342.548366,0.00019178,2]
[424286595,1780752648000,-192.967881,0.00019178,2]
[424286589,1780752648000,-192.967881,0.00019178,2]
[424286592,1780752648000,-192.967881,0.00019178,2]
[424286594,1780752648000,-192.967881,0.00019178,2]
[424286593,1780752648000,-192.967881,0.00019178,2]
[424286597,1780752648000,-192.967881,0.00019178,2]
[424286598,1780752648000,-192.967889,0.00019178,2]
[424286604,1780752648000,-342.548366,0.00019178,2]
[424286602,1780752648000,-342.548366,0.00019178,2]
[424286605,1780752648000,-342.548366,0.00019178,2]
[424286611,1780752648000,-342.548366,0.00019178,2]
[424286603,1780752648000,-342.548366,0.00019178,2]
[424286591,1780752648000,-192.967881,0.00019178,2]
[424286636,1780752648000,-200.0,0.0001925,2]
[424286583,1780752648000,-192.967881,0.00019178,2]
[424286635,1780752648000,-151.0,0.0001925,2]
[424286667,1780752648000,-1201.13236894,0.000193,2]
[424286670,1780752648000,-164.0,0.00019487,2]
[424286671,1780752648000,-1512.24829288,0.000195,2]
[424286668,1780752648000,-2059.31243796,0.000193,2]
[424286669,1780752648000,-225.903832,0.00019452,2]
[424286672,1780752648000,-1201.13236894,0.000195,2]
[424286673,1780752648000,-2059.31243796,0.000195,2]
[424286674,1780752648000,-156.587,0.00019523,2]
[424286676,1780752648000,-160.0,0.00019523,2]
[424286677,1780752648000,-2322.0,0.0001956,2]
[424286680,1780752648000,-2500.0,0.00019603,2]
[424286679,1780752648000,-2000.0,0.00019591,2]
[424286682,1780752648000,-550.0,0.00019603,2]
[424286681,1780752648000,-2500.0,0.00019603,2]
[424286684,1780752648000,-1201.13236894,0.000197,2]
[424286685,1780752648000,-2059.31243796,0.000197,2]
[424286683,1780752648000,-1512.24829288,0.000197,2]
[424286686,1780752648000,-395.96,0.00019768,2]
[424286687,1780752648000,-151.0,0.00019798,2]
[424286688,1780752648000,-200.0,0.00019798,2]
[424286690,1780752648000,-233.5188934,0.00019798,2]
[424286691,1780752648000,-773.24136889,0.00019798,2]
[424286692,1780752648000,-194.72792766,0.00019798,2]
[424286689,1780752648000,-312.13772435,0.00019798,2]
[424286634,1780752648000,-195.41723,0.00019178,2]
[424286664,1780752648000,-2972.0,0.0001929,2]
[424286666,1780752648000,-1512.24829288,0.000193,2]
[424286678,1780752648000,-500.0,0.00019591,2]
[424286675,1780752648000,-217.15233878,0.00019523,2]
[424286638,1780752648000,-225.18697532,0.0001925,2]
[424286665,1780752648000,-973.75,0.000193,2]
[424286644,1780752648000,-200.0,0.0001925,2]
[424286643,1780752648000,-151.0,0.0001925,2]
[424286640,1780752648000,-187.78006524,0.0001925,2]
[424286642,1780752648000,-2236.95670847,0.0001925,2]
[424286649,1780752648000,-10272.10520532,0.0001925,2]
[424286641,1780752648000,-225.18697532,0.0001925,2]
[424286650,1780752648000,-243.88887148,0.0001929,2]
[424286651,1780752648000,-4110.0,0.0001929,2]
[424286647,1780752648000,-225.18697532,0.0001925,2]
[424286646,1780752648000,-1536.04360648,0.0001925,2]
[424286648,1780752648000,-200.0,0.0001925,2]
[424286645,1780752648000,-500.0,0.0001925,2]
[424286652,1780752648000,-1116.0,0.0001929,2]
[424286661,1780752648000,-936.0,0.0001929,2]
[424286663,1780752648000,-675.0,0.0001929,2]
[424286654,1780752648000,-4082.0,0.0001929,2]
[424286659,1780752648000,-1747.0,0.0001929,2]
[424286653,1780752648000,-651.0,0.0001929,2]
[424286660,1780752648000,-408.0,0.0001929,2]
[424286657,1780752648000,-4263.0,0.0001929,2]
[424286658,1780752648000,-801.0,0.0001929,2]
[424286656,1780752648000,-785.0,0.0001929,2]
[424286655,1780752648000,-698.0,0.0001929,2]
[424286662,1780752648000,-1092.0,0.0001929,2]
[424286736,1780752649000,-408.0,0.0002029,2]
[424286731,1780752649000,-698.0,0.0002029,2]
[424286727,1780752649000,-4110.0,0.0002029,2]
[424286723,1780752649000,-1274.0,0.00020235,2]
[424286729,1780752649000,-651.0,0.0002029,2]
[424286734,1780752649000,-801.0,0.0002029,2]
[424286732,1780752649000,-785.0,0.0002029,2]
[424286728,1780752649000,-1116.0,0.0002029,2]
[424286733,1780752649000,-4263.0,0.0002029,2]
[424286724,1780752649000,-382.0,0.00020235,2]
[424286740,1780752649000,-2972.0,0.0002029,2]
[424286726,1780752649000,-161.62190935,0.0002029,2]
[424286739,1780752649000,-675.0,0.0002029,2]
[424286761,1780752649000,-218.67135306,0.0002058,2]
[424286743,1780752649000,-323.68682015,0.00020346,2]
[424286744,1780752649000,-242.15909246,0.00020346,2]
[424286738,1780752649000,-1092.0,0.0002029,2]
[424286742,1780752649000,-200.0,0.00020346,2]
[424286745,1780752649000,-801.85129954,0.00020346,2]
[424286741,1780752649000,-151.0,0.00020346,2]
[424286737,1780752649000,-936.0,0.0002029,2]
[424286747,1780752649000,-242.15909246,0.00020346,2]
[424286748,1780752649000,-2405.55389863,0.00020346,2]
[424286760,1780752649000,-350.0,0.00020408,3]
[424286750,1780752649000,-500.0,0.00020346,2]
[424286751,1780752649000,-200.0,0.00020346,2]
[424286725,1780752649000,-2000.0,0.00020274,7]
[424286746,1780752649000,-201.93286098,0.00020346,2]
[424286735,1780752649000,-1747.0,0.0002029,2]
[424286695,1780752649000,-151.0,0.00019798,2]
[424286720,1780752649000,-192.98074416,0.00020147,2]
[424286693,1780752649000,-233.5188934,0.00019798,2]
[424286694,1780752649000,-2319.72410669,0.00019798,2]
[424286762,1780752649000,-150.0,0.0002058,2]
[424286697,1780752649000,-200.0,0.00019798,2]
[424286698,1780752649000,-1592.87721992,0.00019798,2]
[424286700,1780752649000,-10652.17309792,0.00019798,2]
[424286699,1780752649000,-233.5188934,0.00019798,2]
[424286710,1780752649000,-2321.18003534,0.0002,2]
[424286701,1780752649000,-200.0,0.00019798,2]
[424286706,1780752649000,-1091.0,0.0002,2]
[424286702,1780752649000,-1146.31953558,0.000199,3]
[424286709,1780752649000,-3841.47823314,0.0002,2]
[424286707,1780752649000,-1317.0,0.0002,2]
[424286730,1780752649000,-4082.0,0.0002029,2]
[424286708,1780752649000,-213.85,0.0002,2]
[424286704,1780752649000,-1130.0,0.0002,2]
[424286705,1780752649000,-766.0,0.0002,2]
[424286712,1780752649000,-400.0,0.0002,2]
[424286721,1780752649000,-2321.18003534,0.000202,2]
[424286722,1780752649000,-198.48122476,0.000202,2]
[424286711,1780752649000,-1042.263907,0.0002,2]
[424286713,1780752649000,-1366.0,0.0002,2]
[424286718,1780752649000,-255.94419513,0.00020136,2]
[424286714,1780752649000,-1563.53,0.0002,2]
[424286719,1780752649000,-256.69,0.00020137,2]
[424286715,1780752649000,-14184.8,0.0002,2]
[424286716,1780752649000,-200.0,0.0002,2]
[424286717,1780752649000,-2322.0,0.00020003,2]
[424286703,1780752649000,-1017.0,0.000199,7]
[424286749,1780752649000,-151.0,0.00020346,2]
[424286696,1780752649000,-500.0,0.00019798,2]
[424286757,1780752649000,-221.54121233,0.00020381,2]
[424286788,1780752649000,-200.0,0.00020894,2]
[424286790,1780752649000,-11455.01673214,0.00020894,2]
[424286793,1780752649000,-2325.52,0.00020932,2]
[424286789,1780752649000,-251.11897888,0.00020894,2]
[424286794,1780752649000,-500.0,0.00020938,7]
[424286797,1780752649000,-2321.18003534,0.00021,2]
[424286795,1780752649000,-189.83257161,0.0002096,2]
[424286798,1780752649000,-1261.38402234,0.00021,2]
[424286792,1780752649000,-161.2741679,0.00020896,2]
[424286796,1780752649000,-168.57673864,0.0002096,2]
[424286800,1780752649000,-12302.83992686,0.00021,2]
[424286810,1780752649000,-1130.65951264,0.0002129,2]
[424286802,1780752649000,-152.81900171,0.00021097,7]
[424286791,1780752649000,-200.0,0.00020894,2]
[424286801,1780752649000,-2322.0,0.00021058,2]
[424286803,1780752649000,-532.7,0.000211,7]
[424286799,1780752649000,-1042.263907,0.00021,2]
[424286812,1780752649000,-4084.69734692,0.0002129,2]
[424286805,1780752649000,-973.75,0.000212,2]
[424286811,1780752649000,-651.20650266,0.0002129,2]
[424286806,1780752649000,-1261.38402234,0.000212,2]
[424286807,1780752649000,-246.25690069,0.00021235,2]
[424286808,1780752649000,-1110.09996919,0.00021276,2]
[424286809,1780752649000,-4129.869333,0.0002129,2]
[424286813,1780752649000,-712.32414592,0.0002129,2]
[424286815,1780752649000,-4272.7312709,0.0002129,2]
[424286814,1780752649000,-793.81413638,0.0002129,2]
[424286753,1780752649000,-242.15909246,0.00020346,2]
[424286804,1780752649000,-2321.18003534,0.000212,2]
[424286786,1780752649000,-500.0,0.00020894,2]
[424286816,1780752649000,-807.48872826,0.0002129,2]
[424286781,1780752649000,-831.51979762,0.00020894,2]
[424286754,1780752649000,-11046.30350254,0.00020346,2]
[424286755,1780752649000,-200.0,0.00020346,2]
[424286759,1780752649000,-206.58208862,0.000204,2]
[424286756,1780752649000,-4204.8,0.00020381,2]
[424286752,1780752649000,-1651.81367706,0.00020346,2]
[424286758,1780752649000,-2321.18003534,0.000204,2]
[424286763,1780752649000,-150.0,0.0002058,2]
[424286766,1780752649000,-199.25573401,0.000206,2]
[424286783,1780752649000,-251.11897888,0.00020894,2]
[424286767,1780752649000,-210.93663872,0.00020689,2]
[424286768,1780752649000,-167.0,0.00020738,2]
[424286769,1780752649000,-194.49621793,0.00020738,2]
[424286770,1780752649000,-2321.18003534,0.000208,2]
[424286764,1780752649000,-150.44842242,0.0002058,2]
[424286765,1780752649000,-2321.18003534,0.000206,2]
[424286774,1780752649000,-160.0,0.00020892,2]
[424286785,1780752649000,-151.0,0.00020894,2]
[424286775,1780752649000,-599.60298507,0.00020893,2]
[424286784,1780752649000,-2494.55939288,0.00020894,2]
[424286782,1780752649000,-209.40437684,0.00020894,2]
[424286779,1780752649000,-335.66323249,0.00020894,2]
[424286777,1780752649000,-151.0,0.00020894,2]
[424286778,1780752649000,-200.0,0.00020894,2]
[424286780,1780752649000,-251.11897888,0.00020894,2]
[424286787,1780752649000,-1712.93078311,0.00020894,2]
[424286773,1780752649000,-225.18697532,0.00020892,2]
[424286772,1780752649000,-162.380719,0.00020892,2]
[424286771,1780752649000,-212.61855595,0.000208,2]
[424286776,1780752649000,-747.80937859,0.00020893,2]
[424286852,1780752650000,-10000.0,0.0002185,2]
[424286860,1780752650000,-151.0,0.00021918,2]
[424286861,1780752650000,-151.0,0.00021918,2]
[424286857,1780752650000,-151.0,0.00021918,2]
[424286853,1780752650000,-2321.18003534,0.000219,2]
[424286848,1780752650000,-14184.8,0.00021708,2]
[424286855,1780752650000,-5000.0,0.00021918,2]
[424286862,1780752650000,-154.054209,0.00021918,2]
[424286854,1780752650000,-1261.38402234,0.000219,2]
[424286847,1780752650000,-2321.18003534,0.000217,2]
[424286851,1780752650000,-2000.0,0.0002185,2]
[424286856,1780752650000,-242.339104,0.00021918,2]
[424286872,1780752650000,-800.0,0.00021918,2]
[424286859,1780752650000,-151.0,0.00021918,2]
[424286864,1780752650000,-800.0,0.00021918,2]
[424286863,1780752650000,-150.0,0.00021918,2]
[424286868,1780752650000,-166.0,0.00021918,2]
[424286871,1780752650000,-800.0,0.00021918,2]
[424286873,1780752650000,-800.0,0.00021918,2]
[424286865,1780752650000,-800.0,0.00021918,2]
[424286866,1780752650000,-659.15953549,0.00021918,2]
[424286867,1780752650000,-166.0,0.00021918,2]
[424286869,1780752650000,-800.0,0.00021918,2]
[424286874,1780752650000,-800.0,0.00021918,2]
[424286870,1780752650000,-800.0,0.00021918,2]
[424286846,1780752650000,-1261.38402234,0.000216,2]
[424286858,1780752650000,-151.0,0.00021918,2]
[424286845,1780752650000,-179.90835344,0.00021536,2]
[424286829,1780752650000,-348.0827721,0.00021442,2]
[424286843,1780752650000,-150.0,0.000215,2]
[424286886,1780752650000,-270.0455652,0.0002199,2]
[424286825,1780752650000,-377.60536454,0.00021387,2]
[424286824,1780752650000,-1708.05,0.0002137,2]
[424286817,1780752650000,-1754.35310846,0.0002129,2]
[424286820,1780752650000,-1109.47162442,0.0002129,2]
[424286819,1780752650000,-942.8986884,0.0002129,2]
[424286821,1780752650000,-692.50525579,0.0002129,2]
[424286818,1780752650000,-427.35551753,0.0002129,2]
[424286823,1780752650000,-4855.48,0.00021308,2]
[424286822,1780752650000,-2980.79991138,0.0002129,2]
[424286827,1780752650000,-1261.38402234,0.000214,2]
[424286837,1780752650000,-500.0,0.00021442,2]
[424286836,1780752650000,-151.0,0.00021442,2]
[424286844,1780752650000,-301.01500371,0.00021536,2]
[424286835,1780752650000,-2586.85809042,0.00021442,2]
[424286826,1780752650000,-2321.18003534,0.000214,2]
[424286833,1780752650000,-217.15233878,0.00021442,2]
[424286831,1780752650000,-260.4103811,0.00021442,2]
[424286830,1780752650000,-200.0,0.00021442,2]
[424286834,1780752650000,-260.4103811,0.00021442,2]
[424286832,1780752650000,-862.28603014,0.00021442,2]
[424286838,1780752650000,-1776.30922209,0.00021442,2]
[424286849,1780752650000,-2001.0618,0.0002185,2]
[424286840,1780752650000,-260.4103811,0.00021442,2]
[424286842,1780752650000,-200.0,0.00021442,2]
[424286841,1780752650000,-11878.85235123,0.00021442,2]
[424286839,1780752650000,-200.0,0.00021442,2]
[424286850,1780752650000,-10003.6529,0.0002185,2]
[424286828,1780752650000,-151.0,0.00021442,2]
[424286876,1780752650000,-800.0,0.00021918,2]
[424286875,1780752650000,-800.0,0.00021918,2]
[424286879,1780752650000,-151.0,0.0002199,2]
[424286912,1780752650000,-233.5188934,0.00022261,2]
[424286914,1780752650000,-300.0,0.00022299,2]
[424286916,1780752650000,-1261.38402234,0.000223,2]
[424286913,1780752650000,-187.4024643,0.00022261,2]
[424286919,1780752650000,-4204.8,0.00022353,2]
[424286917,1780752650000,-298.5,0.00022317,2]
[424286922,1780752650000,-500.0,0.00022392,2]
[424286911,1780752650000,-168.3888056,0.00022261,2]
[424286915,1780752650000,-300.0,0.00022299,2]
[424286918,1780752650000,-880.98792683,0.00022324,2]
[424286920,1780752650000,-200.0,0.00022381,2]
[424286921,1780752650000,-880.98792683,0.00022389,2]
[424286924,1780752650000,-762.02338758,0.00022407,2]
[424286935,1780752650000,-350.0,0.00022463,2]
[424286925,1780752650000,-762.02338758,0.00022407,2]
[424286934,1780752650000,-350.0,0.00022463,2]
[424286923,1780752650000,-2017.01286119,0.00022392,2]
[424286926,1780752650000,-762.02338758,0.00022407,2]
[424286927,1780752650000,-292.100373,0.00022407,2]
[424286930,1780752650000,-880.98792683,0.00022453,2]
[424286933,1780752650000,-350.0,0.00022463,2]
[424286929,1780752650000,-292.100373,0.00022407,2]
[424286928,1780752650000,-292.100373,0.00022407,2]
[424286931,1780752650000,-150.0,0.00022457,2]
[424286887,1780752650000,-151.0,0.0002199,2]
[424286937,1780752650000,-350.0,0.00022463,2]
[424286936,1780752650000,-350.0,0.00022463,2]
[424286910,1780752650000,-880.98792683,0.00022259,2]
[424286909,1780752650000,-250.99703328,0.00022187,2]
[424286932,1780752650000,-166.0,0.00022457,2]
[424286906,1780752650000,-180.57396979,0.00022147,2]
[424286908,1780752650000,-201.10477384,0.00022187,2]
[424286880,1780752650000,-360.96183466,0.0002199,2]
[424286881,1780752650000,-270.0455652,0.0002199,2]
[424286882,1780752650000,-200.0,0.0002199,2]
[424286877,1780752650000,-150.0,0.00021918,2]
[424286884,1780752650000,-225.18697532,0.0002199,2]
[424286883,1780752650000,-894.19061325,0.0002199,2]
[424286885,1780752650000,-2682.57183977,0.0002199,2]
[424286888,1780752650000,-500.0,0.0002199,2]
[424286890,1780752650000,-200.0,0.0002199,2]
[424286891,1780752650000,-270.0455652,0.0002199,2]
[424286889,1780752650000,-1842.0326633,0.0002199,2]
[424286893,1780752650000,-200.0,0.0002199,2]
[424286878,1780752650000,-200.0,0.00021918,2]
[424286898,1780752650000,-450.0,0.00022,2]
[424286897,1780752650000,-1042.263907,0.00022,2]
[424286907,1780752650000,-2322.0,0.0002218,2]
[424286903,1780752650000,-1119.79,0.00022066,7]
[424286904,1780752650000,-1057.27,0.00022066,7]